[Event "Early-Titled-Tuesday-Blitz-March-12-2024"]
[Site "Chess.com"]
[Date "2024.03.12"]
[Round "10"]
[White "Polish_fighter3000"]
[Black "BilodeauA"]
[Result "1-0"]
[WhiteElo "3125"]
[BlackElo "3000"]
[TimeControl "180+1"]
[EndTime "9:53:20 PDT"]
[Termination "Polish_fighter3000 won on time"]

1. d4 {[%clk 0:03:00.9]} 1... d5 {[%clk 0:02:55.6]} 2. c4 {[%clk 0:03:00.5]}
2... dxc4 {[%clk 0:02:56.5]} 3. e4 {[%clk 0:03:00.6]} 3... Nf6 {[%clk
0:02:55.8]} 4. e5 {[%clk 0:03:00.9]} 4... Nd5 {[%clk 0:02:56.4]} 5. Bxc4 {[%clk
0:03:01.2]} 5... Nb6 {[%clk 0:02:56.8]} 6. Bd3 {[%clk 0:03:01]} 6... Nc6 {[%clk
0:02:56.9]} 7. Ne2 {[%clk 0:03:01.7]} 7... Be6 {[%clk 0:02:56.2]} 8. Nbc3 {[%clk
0:03:00.5]} 8... Qd7 {[%clk 0:02:54]} 9. Ne4 {[%clk 0:02:54.6]} 9... Bd5 {[%clk
0:02:54]} 10. O-O {[%clk 0:02:46.5]} 10... e6 {[%clk 0:02:53.8]} 11. a3 {[%clk
0:02:43.7]} 11... O-O-O {[%clk 0:02:53.1]} 12. Be3 {[%clk 0:02:41.6]} 12... Be7
{[%clk 0:02:49.6]} 13. b4 {[%clk 0:02:36.7]} 13... Qe8 {[%clk 0:02:32]} 14. Qc2
{[%clk 0:02:24.3]} 14... f5 {[%clk 0:02:20.2]} 15. exf6 {[%clk 0:02:21]} 15...
gxf6 {[%clk 0:02:21.1]} 16. Rac1 {[%clk 0:02:16]} 16... Kb8 {[%clk 0:02:04.9]}
17. b5 {[%clk 0:01:54.6]} 17... Na5 {[%clk 0:02:05.2]} 18. Qxc7+ {[%clk
0:01:54.7]} 18... Ka8 {[%clk 0:02:05.5]} 19. N2c3 {[%clk 0:01:46.7]} 19... Nb3
{[%clk 0:01:24.4]} 20. Rb1 {[%clk 0:01:18.8]} 20... f5 {[%clk 0:01:24.7]} 21.
Nc5 {[%clk 0:00:55.6]} 21... Nxc5 {[%clk 0:00:47.9]} 22. dxc5 {[%clk 0:00:56.5]}
22... Rc8 {[%clk 0:00:36.6]} 23. cxb6 {[%clk 0:00:43.2]} 23... Rxc7 {[%clk
0:00:34.9]} 24. Nxd5 {[%clk 0:00:41.2]} 24... Rc8 {[%clk 0:00:17.4]} 25. Nc7+
{[%clk 0:00:40.8]} 25... Rxc7 {[%clk 0:00:18.1]} 26. bxc7 {[%clk 0:00:41.7]}
26... Qd7 {[%clk 0:00:18.7]} 27. Bc4 {[%clk 0:00:16]} 27... Qxc7 {[%clk
0:00:16.7]} 28. Bxe6 {[%clk 0:00:16.6]} 28... Qe5 {[%clk 0:00:17.1]} 29. Ba2
{[%clk 0:00:06.4]} 29... f4 {[%clk 0:00:17.5]} 30. Bc1 {[%clk 0:00:04.2]} 30...
Rd8 {[%clk 0:00:16]} 31. Bb2 {[%clk 0:00:03.8]} 31... Qg5 {[%clk 0:00:15.2]} 32.
Rfe1 {[%clk 0:00:03.7]} 32... f3 {[%clk 0:00:13]} 33. g3 {[%clk 0:00:04.3]}
33... Bc5 {[%clk 0:00:13.2]} 34. Bc1 {[%clk 0:00:03.3]} 34... Qh5 {[%clk
0:00:10.5]} 35. Be6 {[%clk 0:00:03.4]} 35... Qg6 {[%clk 0:00:04.9]} 36. Bf4
{[%clk 0:00:02.8]} 36... Qc2 {[%clk 0:00:04.6]} 37. Rf1 {[%clk 0:00:02.2]} 37...
Bxf2+ {[%clk 0:00:05.1]} 38. Kh1 {[%clk 0:00:02.8]} 38... Bb6 {[%clk 0:00:04.9]}
39. Bh3 {[%clk 0:00:03.2]} 39... f2 {[%clk 0:00:04.8]} 40. Rbc1 {[%clk
0:00:03.2]} 40... Qe4+ {[%clk 0:00:04.5]} 41. Bg2 {[%clk 0:00:03.7]} 41... Qe7
{[%clk 0:00:05.3]} 42. a4 {[%clk 0:00:03.7]} 42... Re8 {[%clk 0:00:05.5]} 43. a5
{[%clk 0:00:04]} 43... Bxa5 {[%clk 0:00:04.9]} 44. Rxf2 {[%clk 0:00:04.6]} 44...
Bb6 {[%clk 0:00:05.6]} 45. Rfc2 {[%clk 0:00:04.9]} 45... Qe6 {[%clk 0:00:03.9]}
46. h4 {[%clk 0:00:03.7]} 46... h5 {[%clk 0:00:02.8]} 47. Kh2 {[%clk 0:00:04.1]}
47... Qd7 {[%clk 0:00:03.2]} 48. Bh3 {[%clk 0:00:04.1]} 48... Qd8 {[%clk
0:00:01]} 49. Rc8+ {[%clk 0:00:04.4]} 1-0

[Event "Early-Titled-Tuesday-Blitz-March-12-2024"]
[Site "Chess.com"]
[Date "2024.03.12"]
[Round "10"]
[White "TigrVShlyape"]
[Black "Peng_Li-Min"]
[Result "1-0"]
[WhiteElo "2924"]
[BlackElo "2807"]
[TimeControl "180+1"]
[EndTime "9:53:20 PDT"]
[Termination "TigrVShlyape won on time"]

1. e4 {[%clk 0:03:00.9]} 1... Nc6 {[%clk 0:02:58.8]} 2. Nf3 {[%clk 0:02:55.1]}
2... d5 {[%clk 0:02:59.2]} 3. exd5 {[%clk 0:02:52.1]} 3... Qxd5 {[%clk
0:03:00.1]} 4. Nc3 {[%clk 0:02:52.1]} 4... Qh5 {[%clk 0:03:00.7]} 5. Nb5 {[%clk
0:02:37.4]} 5... Kd8 {[%clk 0:03:01]} 6. Be2 {[%clk 0:02:30.9]} 6... Bg4 {[%clk
0:03:01.1]} 7. Nbd4 {[%clk 0:02:23.8]} 7... Nxd4 {[%clk 0:02:58.5]} 8. Nxd4
{[%clk 0:02:22.8]} 8... Bxe2 {[%clk 0:02:59.2]} 9. Nxe2 {[%clk 0:02:22.7]} 9...
e6 {[%clk 0:02:57.3]} 10. d4 {[%clk 0:02:22]} 10... Bd6 {[%clk 0:02:57.8]} 11.
Be3 {[%clk 0:02:15]} 11... Nf6 {[%clk 0:02:58.3]} 12. Qd2 {[%clk 0:01:55.7]}
12... Ke7 {[%clk 0:02:50.6]} 13. h3 {[%clk 0:01:49.1]} 13... Rhd8 {[%clk
0:02:48.5]} 14. O-O {[%clk 0:01:45.5]} 14... Kf8 {[%clk 0:02:41.8]} 15. c4
{[%clk 0:01:39.7]} 15... c5 {[%clk 0:02:33.5]} 16. Qc2 {[%clk 0:01:35.3]} 16...
cxd4 {[%clk 0:02:27.6]} 17. Bxd4 {[%clk 0:01:33.5]} 17... Qg6 {[%clk 0:02:10.2]}
18. Qxg6 {[%clk 0:01:30.2]} 18... hxg6 {[%clk 0:02:11.1]} 19. Rfd1 {[%clk
0:01:29.9]} 19... a6 {[%clk 0:01:54.7]} 20. Nc3 {[%clk 0:01:29.1]} 20... Rac8
{[%clk 0:01:48.6]} 21. b3 {[%clk 0:01:26.4]} 21... Ke7 {[%clk 0:01:35.4]} 22.
Kf1 {[%clk 0:01:24.4]} 22... Bc5 {[%clk 0:01:24.8]} 23. Bxc5+ {[%clk 0:01:19.9]}
23... Rxc5 {[%clk 0:01:25.7]} 24. Rxd8 {[%clk 0:01:18.9]} 24... Kxd8 {[%clk
0:01:26.6]} 25. Rd1+ {[%clk 0:01:18.7]} 25... Kc7 {[%clk 0:01:22.4]} 26. Rd3
{[%clk 0:01:09.5]} 26... g5 {[%clk 0:01:12.9]} 27. f3 {[%clk 0:01:00.2]} 27...
Re5 {[%clk 0:01:10.3]} 28. Kf2 {[%clk 0:00:58.7]} 28... b5 {[%clk 0:01:03.1]}
29. cxb5 {[%clk 0:00:48.3]} 29... axb5 {[%clk 0:01:04]} 30. b4 {[%clk
0:00:47.6]} 30... Kb6 {[%clk 0:00:53]} 31. Rd6+ {[%clk 0:00:37.4]} 31... Kc7
{[%clk 0:00:30.9]} 32. Ra6 {[%clk 0:00:33.7]} 32... Nd7 {[%clk 0:00:31.5]} 33.
a4 {[%clk 0:00:27.7]} 33... bxa4 {[%clk 0:00:28.2]} 34. Rxa4 {[%clk 0:00:27.3]}
34... Kb7 {[%clk 0:00:27.2]} 35. Ra1 {[%clk 0:00:21.9]} 35... Nb6 {[%clk
0:00:20.6]} 36. Rd1 {[%clk 0:00:19]} 36... Kc6 {[%clk 0:00:09.1]} 37. Rd8 {[%clk
0:00:17]} 37... Nd5 {[%clk 0:00:07.7]} 38. Nxd5 {[%clk 0:00:16.3]} 38... Rxd5
{[%clk 0:00:05.4]} 39. Rf8 {[%clk 0:00:14.2]} 39... Rd7 {[%clk 0:00:04.4]} 40.
Ke3 {[%clk 0:00:13.8]} 40... Kb5 {[%clk 0:00:01.5]} 41. Rb8+ {[%clk 0:00:13.6]}
41... Kc6 {[%clk 0:00:02.2]} 42. g3 {[%clk 0:00:11.5]} 42... Kc7 {[%clk
0:00:02.5]} 43. Rb5 {[%clk 0:00:10.9]} 43... f6 {[%clk 0:00:01.9]} 44. h4 {[%clk
0:00:10.2]} 44... gxh4 {[%clk 0:00:01.6]} 45. gxh4 {[%clk 0:00:10.6]} 45... Kc6
{[%clk 0:00:02.5]} 46. Rc5+ {[%clk 0:00:10.3]} 46... Kb6 {[%clk 0:00:02.1]} 47.
h5 {[%clk 0:00:10.2]} 47... Rd1 {[%clk 0:00:01.2]} 48. Rc8 {[%clk 0:00:10.2]}
48... Rh1 {[%clk 0:00:01.6]} 49. Re8 {[%clk 0:00:09.3]} 49... Rxh5 {[%clk
0:00:01.9]} 50. Rxe6+ {[%clk 0:00:09.5]} 50... Kb5 {[%clk 0:00:02.1]} 51. Re7
{[%clk 0:00:09.8]} 51... Rg5 {[%clk 0:00:01.6]} 52. Rb7+ {[%clk 0:00:09.6]}
52... Kc4 {[%clk 0:00:02]} 53. Rb8 {[%clk 0:00:09.4]} 53... Re5+ {[%clk
0:00:01.9]} 54. Kf4 {[%clk 0:00:09.4]} 1-0

[Event "Early-Titled-Tuesday-Blitz-March-12-2024"]
[Site "Chess.com"]
[Date "2024.03.12"]
[Round "10"]
[White "GMKrikor"]
[Black "profedechess93"]
[Result "1-0"]
[WhiteElo "2865"]
[BlackElo "2624"]
[TimeControl "180+1"]
[EndTime "9:53:22 PDT"]
[Termination "GMKrikor won by resignation"]

1. Nf3 {[%clk 0:03:00.9]} 1... d5 {[%clk 0:02:59.9]} 2. c4 {[%clk 0:03:01.1]}
2... c6 {[%clk 0:02:59.6]} 3. d4 {[%clk 0:03:00.9]} 3... Nf6 {[%clk 0:02:59.8]}
4. Nc3 {[%clk 0:02:57.1]} 4... dxc4 {[%clk 0:02:59.7]} 5. e4 {[%clk 0:02:56.8]}
5... b5 {[%clk 0:02:59.3]} 6. Qc2 {[%clk 0:02:56.8]} 6... e6 {[%clk 0:02:47.1]}
7. Be2 {[%clk 0:02:56.8]} 7... a6 {[%clk 0:02:41.2]} 8. a4 {[%clk 0:02:50.7]}
8... Bb4 {[%clk 0:01:59.7]} 9. O-O {[%clk 0:02:46.7]} 9... Bb7 {[%clk
0:01:46.5]} 10. Bg5 {[%clk 0:02:13.5]} 10... h6 {[%clk 0:01:42.4]} 11. Bh4
{[%clk 0:02:12.2]} 11... Nbd7 {[%clk 0:01:14.8]} 12. Rad1 {[%clk 0:02:06]} 12...
Qa5 {[%clk 0:00:55]} 13. h3 {[%clk 0:01:34.5]} 13... Bxc3 {[%clk 0:00:47.4]} 14.
bxc3 {[%clk 0:01:35.4]} 14... Qxa4 {[%clk 0:00:47.3]} 15. Qxa4 {[%clk
0:01:32.1]} 15... bxa4 {[%clk 0:00:48.2]} 16. Nd2 {[%clk 0:01:31.4]} 16... c5
{[%clk 0:00:46.2]} 17. f3 {[%clk 0:01:29.5]} 17... cxd4 {[%clk 0:00:42.3]} 18.
Nxc4 {[%clk 0:01:29.9]} 18... O-O {[%clk 0:00:39]} 19. cxd4 {[%clk 0:01:29.6]}
19... Bc6 {[%clk 0:00:37.9]} 20. Na3 {[%clk 0:01:17.4]} 20... Rfc8 {[%clk
0:00:24.1]} 21. Rc1 {[%clk 0:01:12.3]} 21... Bb7 {[%clk 0:00:24.3]} 22. Bg3
{[%clk 0:01:08.8]} 22... Ne8 {[%clk 0:00:22]} 23. Kf2 {[%clk 0:01:07.6]} 23...
f6 {[%clk 0:00:19]} 24. Ke3 {[%clk 0:01:07.5]} 24... e5 {[%clk 0:00:19.3]} 25.
dxe5 {[%clk 0:01:02.3]} 25... fxe5 {[%clk 0:00:19.3]} 26. Nc4 {[%clk 0:01:02.7]}
26... Rc5 {[%clk 0:00:18.1]} 27. Rfd1 {[%clk 0:00:59.5]} 27... Nef6 {[%clk
0:00:15.1]} 28. Nd6 {[%clk 0:01:00]} 28... Rxc1 {[%clk 0:00:14.4]} 29. Rxc1
{[%clk 0:01:00.1]} 29... Rb8 {[%clk 0:00:12]} 30. Rb1 {[%clk 0:00:59.8]} 30...
Nc5 {[%clk 0:00:11.7]} 31. Bxe5 {[%clk 0:00:58]} 31... Nfd7 {[%clk 0:00:12.3]}
32. Bd4 {[%clk 0:00:57.2]} 32... a5 {[%clk 0:00:10.9]} 33. Bc4+ {[%clk
0:00:48.4]} 33... Kf8 {[%clk 0:00:10.6]} 34. Nf5 {[%clk 0:00:48.2]} 34... a3
{[%clk 0:00:09.5]} 35. Bxg7+ {[%clk 0:00:47.7]} 35... Ke8 {[%clk 0:00:09.9]} 36.
Bd4 {[%clk 0:00:45.8]} 36... a4 {[%clk 0:00:09.4]} 37. Nd6+ {[%clk 0:00:44.5]}
37... Ke7 {[%clk 0:00:08.7]} 38. Nb5 {[%clk 0:00:43.9]} 38... Nb3 {[%clk
0:00:06.2]} 39. Nxa3 {[%clk 0:00:41.5]} 39... Nxd4 {[%clk 0:00:06.1]} 40. Kxd4
{[%clk 0:00:41.9]} 40... Kd6 {[%clk 0:00:06.8]} 41. Ke3 {[%clk 0:00:40.1]} 41...
Kc5 {[%clk 0:00:05.9]} 42. Be2 {[%clk 0:00:38.8]} 42... Ne5 {[%clk 0:00:05.9]}
43. Rb5+ {[%clk 0:00:36.5]} 43... Kd6 {[%clk 0:00:05.7]} 44. f4 {[%clk
0:00:37.1]} 44... Nd7 {[%clk 0:00:05.2]} 45. Bf3 {[%clk 0:00:34.9]} 45... Kc7
{[%clk 0:00:02.3]} 46. Rb4 {[%clk 0:00:33.7]} 46... Re8 {[%clk 0:00:02]} 47.
Rxa4 {[%clk 0:00:31.1]} 47... Bc6 {[%clk 0:00:02.9]} 48. Rd4 {[%clk 0:00:28.7]}
48... Nb6 {[%clk 0:00:03.8]} 49. Nc4 {[%clk 0:00:28.4]} 49... Nd7 {[%clk
0:00:03.5]} 50. Nd6 {[%clk 0:00:28.2]} 50... Ra8 {[%clk 0:00:03.6]} 51. e5
{[%clk 0:00:26.5]} 51... Ra3+ {[%clk 0:00:04.1]} 52. Rd3 {[%clk 0:00:26.9]}
52... Ra4 {[%clk 0:00:03.6]} 53. Rc3 {[%clk 0:00:26.5]} 53... Nb8 {[%clk
0:00:03.3]} 54. Nf5 {[%clk 0:00:20.5]} 54... Kd7 {[%clk 0:00:03.5]} 55. Bxc6+
{[%clk 0:00:20.5]} 55... Nxc6 {[%clk 0:00:04.4]} 56. Nxh6 {[%clk 0:00:21.2]}
56... Ke6 {[%clk 0:00:04.8]} 57. Rxc6+ {[%clk 0:00:20.2]} 1-0

[Event "Early-Titled-Tuesday-Blitz-March-12-2024"]
[Site "Chess.com"]
[Date "2024.03.12"]
[Round "10"]
[White "DamianoLew95"]
[Black "Ural_bogatyr"]
[Result "0-1"]
[WhiteElo "2731"]
[BlackElo "2620"]
[TimeControl "180+1"]
[EndTime "9:53:25 PDT"]
[Termination "Ural_bogatyr won on time"]

1. e4 {[%clk 0:03:00.9]} 1... e5 {[%clk 0:02:56.3]} 2. Nf3 {[%clk 0:02:59.9]}
2... Nc6 {[%clk 0:02:55.1]} 3. Bb5 {[%clk 0:03:00.5]} 3... a6 {[%clk 0:02:54.1]}
4. Ba4 {[%clk 0:03:01.1]} 4... Nf6 {[%clk 0:02:53.3]} 5. O-O {[%clk 0:03:00.3]}
5... Nxe4 {[%clk 0:02:53.2]} 6. d4 {[%clk 0:02:58]} 6... b5 {[%clk 0:02:53.1]}
7. Bb3 {[%clk 0:02:57.8]} 7... d5 {[%clk 0:02:53.2]} 8. dxe5 {[%clk 0:02:56.9]}
8... Be6 {[%clk 0:02:53.6]} 9. c3 {[%clk 0:02:54.3]} 9... Nc5 {[%clk 0:02:46.2]}
10. Bc2 {[%clk 0:02:54.1]} 10... Be7 {[%clk 0:02:43.3]} 11. Re1 {[%clk
0:02:53.8]} 11... Qd7 {[%clk 0:02:39.5]} 12. Nd4 {[%clk 0:02:51.6]} 12... Rd8
{[%clk 0:02:30.6]} 13. Qf3 {[%clk 0:02:40.1]} 13... h5 {[%clk 0:02:23.4]} 14. h3
{[%clk 0:02:24.5]} 14... g5 {[%clk 0:02:16.5]} 15. Nf5 {[%clk 0:02:18.4]} 15...
g4 {[%clk 0:02:06.6]} 16. hxg4 {[%clk 0:02:07.2]} 16... hxg4 {[%clk 0:02:05]}
17. Qxg4 {[%clk 0:02:07.7]} 17... Bf8 {[%clk 0:01:44.9]} 18. Ng7+ {[%clk
0:01:55.5]} 18... Bxg7 {[%clk 0:01:39.7]} 19. Qxg7 {[%clk 0:01:56.4]} 19... Rf8
{[%clk 0:01:40.5]} 20. Bh6 {[%clk 0:01:52.7]} 20... Qe7 {[%clk 0:01:40.6]} 21.
f4 {[%clk 0:01:29.5]} 21... Kd7 {[%clk 0:01:35]} 22. Bg5 {[%clk 0:01:27.7]}
22... Qe8 {[%clk 0:01:31.9]} 23. Bxd8 {[%clk 0:01:09.8]} 23... Kxd8 {[%clk
0:01:24.1]} 24. f5 {[%clk 0:01:06.3]} 24... Bd7 {[%clk 0:01:24.1]} 25. Nd2
{[%clk 0:01:01.8]} 25... Kc8 {[%clk 0:01:21.5]} 26. Nf3 {[%clk 0:00:59.1]} 26...
Ne4 {[%clk 0:01:17.7]} 27. Bxe4 {[%clk 0:00:53]} 27... dxe4 {[%clk 0:01:13.7]}
28. Rxe4 {[%clk 0:00:53.9]} 28... Bxf5 {[%clk 0:01:11.9]} 29. Rf4 {[%clk
0:00:48.8]} 29... Be6 {[%clk 0:01:06.1]} 30. Rd1 {[%clk 0:00:26.9]} 30... Ne7
{[%clk 0:01:02.7]} 31. Nd4 {[%clk 0:00:19.9]} 31... Rg8 {[%clk 0:01:01.1]} 32.
Qf6 {[%clk 0:00:18.4]} 32... Nd5 {[%clk 0:00:58.4]} 33. Qh4 {[%clk 0:00:14.9]}
33... Nxf4 {[%clk 0:00:56.5]} 34. Qxf4 {[%clk 0:00:15.8]} 34... Bd5 {[%clk
0:00:54.5]} 35. Rd2 {[%clk 0:00:15.1]} 35... Qf8 {[%clk 0:00:44.1]} 36. Nf5
{[%clk 0:00:12.9]} 36... Qc5+ {[%clk 0:00:43.2]} 37. Qd4 {[%clk 0:00:12]} 37...
Qxd4+ {[%clk 0:00:39.9]} 38. cxd4 {[%clk 0:00:12.5]} 38... Kd7 {[%clk
0:00:38.8]} 39. b3 {[%clk 0:00:12.6]} 39... Rg5 {[%clk 0:00:37.6]} 40. Ne3
{[%clk 0:00:12.9]} 40... Ke6 {[%clk 0:00:36.8]} 41. Nd1 {[%clk 0:00:11.4]} 41...
b4 {[%clk 0:00:35.1]} 42. Nb2 {[%clk 0:00:11]} 42... c6 {[%clk 0:00:34.5]} 43.
Nd3 {[%clk 0:00:11.2]} 43... a5 {[%clk 0:00:34.2]} 44. Nc5+ {[%clk 0:00:09.4]}
44... Ke7 {[%clk 0:00:31.5]} 45. Nb7 {[%clk 0:00:09.2]} 45... a4 {[%clk
0:00:30]} 46. bxa4 {[%clk 0:00:07.7]} 46... Rg3 {[%clk 0:00:30.6]} 47. Na5
{[%clk 0:00:05.8]} 47... Ra3 {[%clk 0:00:29.7]} 48. Rc2 {[%clk 0:00:06.1]} 48...
Rxa4 {[%clk 0:00:26.1]} 49. Nxc6+ {[%clk 0:00:05.6]} 49... Kd7 {[%clk
0:00:23.4]} 50. Nb8+ {[%clk 0:00:04.3]} 50... Ke6 {[%clk 0:00:23.4]} 51. Rb2
{[%clk 0:00:01.8]} 51... Bxa2 {[%clk 0:00:22.8]} 52. Nc6 {[%clk 0:00:02.3]}
52... b3 {[%clk 0:00:20.5]} 53. Kf2 {[%clk 0:00:02.9]} 53... Rc4 {[%clk
0:00:20.1]} 54. d5+ {[%clk 0:00:01.7]} 54... Kxd5 {[%clk 0:00:19.4]} 55. Na5
{[%clk 0:00:02.2]} 55... Rc2+ {[%clk 0:00:18.9]} 0-1

[Event "Early-Titled-Tuesday-Blitz-March-12-2024"]
[Site "Chess.com"]
[Date "2024.03.12"]
[Round "10"]
[White "HanSchut"]
[Black "FischerKasparow"]
[Result "1-0"]
[WhiteElo "2330"]
[BlackElo "2110"]
[TimeControl "180+1"]
[EndTime "9:53:25 PDT"]
[Termination "HanSchut won by checkmate"]

1. e4 {[%clk 0:03:00.9]} 1... c5 {[%clk 0:03:00.1]} 2. Nf3 {[%clk 0:03:01.1]}
2... d6 {[%clk 0:03:00.4]} 3. d4 {[%clk 0:03:01.6]} 3... Nf6 {[%clk 0:03:00.9]}
4. dxc5 {[%clk 0:02:57.4]} 4... Nxe4 {[%clk 0:03:00.4]} 5. cxd6 {[%clk 0:02:58]}
5... Nc6 {[%clk 0:02:59.9]} 6. Bd3 {[%clk 0:02:51.7]} 6... Nxd6 {[%clk
0:02:59.4]} 7. O-O {[%clk 0:02:49.8]} 7... Bf5 {[%clk 0:02:59.1]} 8. Bf4 {[%clk
0:02:44.1]} 8... e6 {[%clk 0:02:50]} 9. Bxd6 {[%clk 0:02:41.8]} 9... Bxd3 {[%clk
0:02:45.6]} 10. Qxd3 {[%clk 0:02:34.9]} 10... Qxd6 {[%clk 0:02:45.5]} 11. Qb5
{[%clk 0:02:18.3]} 11... Qc7 {[%clk 0:02:29.8]} 12. Nc3 {[%clk 0:02:16.2]} 12...
a6 {[%clk 0:02:27]} 13. Qa4 {[%clk 0:02:14.1]} 13... Be7 {[%clk 0:02:17.4]} 14.
Rad1 {[%clk 0:02:09.7]} 14... O-O {[%clk 0:02:16.9]} 15. a3 {[%clk 0:02:04]}
15... b5 {[%clk 0:02:17]} 16. Qg4 {[%clk 0:02:03.2]} 16... Rfd8 {[%clk
0:02:11.1]} 17. Qh5 {[%clk 0:01:41]} 17... Rxd1 {[%clk 0:02:00.1]} 18. Rxd1
{[%clk 0:01:38.8]} 18... Rd8 {[%clk 0:02:00.7]} 19. Rxd8+ {[%clk 0:01:30.4]}
19... Qxd8 {[%clk 0:02:01.6]} 20. h3 {[%clk 0:01:29.1]} 20... Nd4 {[%clk
0:01:46.4]} 21. Nxd4 {[%clk 0:01:23.6]} 21... Qxd4 {[%clk 0:01:47.3]} 22. Qd1
{[%clk 0:01:21.8]} 22... Bf6 {[%clk 0:01:41.4]} 23. Qxd4 {[%clk 0:01:20.1]}
23... Bxd4 {[%clk 0:01:42.3]} 24. Nd1 {[%clk 0:01:20.7]} 24... Kf8 {[%clk
0:01:35]} 25. c3 {[%clk 0:01:21.1]} 25... Bf6 {[%clk 0:01:35.2]} 26. Kf1 {[%clk
0:01:21.7]} 26... Ke7 {[%clk 0:01:35.3]} 27. Ke2 {[%clk 0:01:22.3]} 27... Kd6
{[%clk 0:01:35.8]} 28. Kd3 {[%clk 0:01:22.8]} 28... Bg5 {[%clk 0:01:32.6]} 29.
c4 {[%clk 0:01:16.6]} 29... bxc4+ {[%clk 0:01:24.8]} 30. Kxc4 {[%clk 0:01:17.5]}
30... Bc1 {[%clk 0:01:16.7]} 31. a4 {[%clk 0:01:15.3]} 31... Kc6 {[%clk
0:01:16.3]} 32. b4 {[%clk 0:01:13.7]} 32... e5 {[%clk 0:01:09.3]} 33. f3 {[%clk
0:01:12.6]} 33... f5 {[%clk 0:01:06.8]} 34. Nc3 {[%clk 0:01:08.7]} 34... Bd2
{[%clk 0:00:59.2]} 35. b5+ {[%clk 0:01:03.1]} 35... axb5+ {[%clk 0:00:59.1]} 36.
axb5+ {[%clk 0:01:03.7]} 36... Kb7 {[%clk 0:00:58.2]} 37. Nd5 {[%clk 0:00:59]}
37... g6 {[%clk 0:00:43.9]} 38. g4 {[%clk 0:00:52.2]} 38... fxg4 {[%clk
0:00:41.8]} 39. fxg4 {[%clk 0:00:51]} 39... h5 {[%clk 0:00:41.7]} 40. Kd3 {[%clk
0:00:48]} 40... Be1 {[%clk 0:00:38.6]} 41. Ke4 {[%clk 0:00:47.7]} 41... Bg3
{[%clk 0:00:34.4]} 42. Ne7 {[%clk 0:00:31.3]} 42... hxg4 {[%clk 0:00:30.9]} 43.
hxg4 {[%clk 0:00:30.6]} 43... g5 {[%clk 0:00:30.7]} 44. Nd5 {[%clk 0:00:30]}
44... Bf4 {[%clk 0:00:21.1]} 45. Kf5 {[%clk 0:00:26.4]} 45... Kb8 {[%clk
0:00:16.5]} 46. Nf6 {[%clk 0:00:22.6]} 46... Kb7 {[%clk 0:00:15.5]} 47. Ne4
{[%clk 0:00:23.2]} 47... Kb6 {[%clk 0:00:15.5]} 48. Nxg5 {[%clk 0:00:23.6]}
48... Kxb5 {[%clk 0:00:14.9]} 49. Ne6 {[%clk 0:00:23.7]} 49... Kc6 {[%clk
0:00:14.4]} 50. Nxf4 {[%clk 0:00:23]} 50... exf4 {[%clk 0:00:14]} 51. Kxf4
{[%clk 0:00:23.9]} 51... Kd6 {[%clk 0:00:14.3]} 52. Kg5 {[%clk 0:00:24]} 52...
Ke7 {[%clk 0:00:14.5]} 53. Kg6 {[%clk 0:00:23.9]} 53... Kf8 {[%clk 0:00:14.9]}
54. g5 {[%clk 0:00:23.7]} 54... Kg8 {[%clk 0:00:15]} 55. Kh6 {[%clk 0:00:24.2]}
55... Kh8 {[%clk 0:00:14.7]} 56. g6 {[%clk 0:00:24.6]} 56... Kg8 {[%clk
0:00:15.1]} 57. g7 {[%clk 0:00:25.2]} 57... Kf7 {[%clk 0:00:15.3]} 58. Kh7
{[%clk 0:00:26.1]} 58... Kf6 {[%clk 0:00:15.5]} 59. g8=Q {[%clk 0:00:26.2]}
59... Ke5 {[%clk 0:00:16.4]} 60. Qg4 {[%clk 0:00:26.2]} 60... Kd5 {[%clk
0:00:16.2]} 61. Kg6 {[%clk 0:00:26.6]} 61... Ke5 {[%clk 0:00:16.3]} 62. Kg5
{[%clk 0:00:24.3]} 62... Kd5 {[%clk 0:00:17.2]} 63. Qf4 {[%clk 0:00:24.5]} 63...
Ke6 {[%clk 0:00:17.3]} 64. Qe4+ {[%clk 0:00:24.2]} 64... Kd6 {[%clk 0:00:17.4]}
65. Kf6 {[%clk 0:00:24.6]} 65... Kd7 {[%clk 0:00:17.8]} 66. Qd5+ {[%clk
0:00:24]} 66... Kc7 {[%clk 0:00:18.7]} 67. Ke7 {[%clk 0:00:22.9]} 67... Kb6
{[%clk 0:00:19.6]} 68. Qc4 {[%clk 0:00:22.8]} 68... Ka5 {[%clk 0:00:19.3]} 69.
Qb3 {[%clk 0:00:22.7]} 69... Ka6 {[%clk 0:00:19.2]} 70. Kd6 {[%clk 0:00:22.6]}
70... Ka7 {[%clk 0:00:20.1]} 71. Kc7 {[%clk 0:00:22.5]} 71... Ka8 {[%clk
0:00:21]} 72. Qb8# {[%clk 0:00:22.5]} 1-0